bitfinex-derivatives/quotes_SOLF0:USTF0_20251219
["timestamp","ask_amount","ask_price","bid_price","bid_amount"]
[1766167537504,0.00164923,124.02,124.0,0.00125713]
[1766167540711,23.84164923,124.02,123.94,27.9544]
[1766167540911,23.84164923,124.02,123.94,75.5944]
[1766167540912,22.22,124.02,123.94,75.5944]
[1766167541417,29.4802,124.02,123.94,75.5944]
[1766167541810,0.05926156,123.99,123.97,0.05961836]
[1766167547419,29.4793,124.04,123.97,0.05961836]
[1766167547718,29.4793,124.04,123.97,20.74961836]
[1766167547719,22.22,124.04,123.97,20.74961836]
[1766167548308,22.22,124.04,123.97,28.01241836]
[1766167548514,0.05112117,124.02,123.97,20.74961836]
[1766167551524,29.4781,124.06,123.99,20.69]
[1766167552610,0.0532284,124.04,124.01,0.05523836]
[1766167554321,0.0032284,124.04,124.01,20.74523836]
[1766167555115,22.22,124.11,124.02,20.69]
[1766167555318,69.88,124.13,124.05,27.9481]
[1766167555627,22.22,124.16,124.06,20.69]
[1766167556220,0.06099015,124.12,124.06,20.69]
[1766167556532,0.06099015,124.12,124.06,68.33]
[1766167556824,0.00099015,124.12,124.07,20.69]
[1766167557037,22.22,124.17,124.09,20.69]
[1766167557324,22.22,124.17,124.1,7.9490659]
[1766167557518,22.22,124.17,124.11,7.9490659]
[1766167557718,22.22,124.17,124.12,7.9490659]
[1766167557917,22.22,124.17,124.09,20.69]
[1766167557918,22.22,124.17,124.13,7.9490659]
[1766167558118,22.2741897,124.16,124.06,27.9475]
[1766167558319,22.22,124.16,124.07,68.33]
[1766167559114,0.05604609,124.13,124.1,0.05246223]
[1766167559519,22.27604609,124.13,124.1,0.00246223]
[1766167559921,22.27604609,124.13,124.04,47.64]
[1766167560121,22.22,124.13,124.04,47.64]
[1766167560624,22.22,124.13,124.05,20.69]
[1766167561028,0.05577961,124.1,124.08,0.0576383]
[1766167562029,0.05577961,124.1,124.03,47.62]
[1766167562532,0.05577961,124.1,124.04,20.69]
[1766167562924,0.05577961,124.1,124.06,0.05766347]
[1766167565436,27.6829,124.15,124.06,21.56766347]
[1766167565632,20.43,124.14,124.06,21.51]
[1766167566530,0.05849236,124.11,124.09,0.05283503]
[1766167567534,0.05849236,124.11,124.09,0.00283503]
[1766167567737,20.48849236,124.11,124.04,21.51]
[1766167568327,20.48849236,124.11,124.04,28.7688]
[1766167568539,20.48849236,124.11,124.04,21.51]
[1766167568742,20.48849236,124.11,124.06,0.06025485]
[1766167570046,20.48849236,124.11,124.07,7.74673466]
[1766167570237,20.48849236,124.11,124.08,7.74673466]
[1766167570444,20.48849236,124.11,124.09,7.74673466]
[1766167570647,0.05849236,124.11,124.09,0.05774663]
[1766167571845,20.43,124.14,124.09,0.05774663]
[1766167572844,0.05345262,124.13,124.09,0.05774663]
[1766167573453,20.48345262,124.13,124.09,0.05774663]
[1766167573749,0.05345262,124.13,124.09,21.56774663]
[1766167574453,0.00345262,124.13,124.09,28.82364663]
[1766167574655,0.00345262,124.13,124.07,112.887]
[1766167574860,0.00345262,124.13,124.06,112.8968]
[1766167575057,0.00345262,124.13,124.07,47.62]
[1766167575650,0.00345262,124.13,124.09,0.05617959]
[1766167577654,20.43345262,124.13,124.06,7.2574]
[1766167578059,20.43,124.11,124.04,7.2586]
[1766167578551,20.43,124.11,124.04,29.1386]
[1766167578862,0.05971707,124.09,124.06,0.05098313]
[1766167581856,20.67971707,124.09,124.01,21.88]
[1766167582166,20.62,124.09,123.99,47.62]
[1766167582464,112.8654,124.1,123.99,47.62]
[1766167582465,20.62,124.08,123.99,69.5]
[1766167582863,0.05426009,124.05,124.02,0.05464852]
[1766167585164,20.67426009,124.05,124.02,0.00464852]
[1766167585864,0.05426009,124.05,124.02,0.00464852]
[1766167588863,0.00426009,124.05,124.02,21.88464852]
[1766167589264,0.00426009,124.05,124.02,29.14454852]
[1766167593862,0.00426009,124.05,124.03,47.62]
[1766167594061,0.00426009,124.05,124.03,69.5]
[1766167594266,0.00426009,124.05,124.04,21.06]
[1766167595866,21.08,124.12,124.05,21.06]
[1766167596066,21.08,124.14,124.05,21.06]
[1766167596374,21.08,124.14,124.08,7.2565]
[1766167596564,21.08,124.14,124.07,68.68]
[1766167596871,0.05614675,124.12,124.09,0.06179067]
[1766167597576,0.05614675,124.12,124.09,7.31769067]
[1766167597774,21.08,124.16,124.09,28.37769067]
[1766167598875,0.00334691,124.14,124.12,28.314]
[1766167599067,21.08,124.2,124.12,68.68]
[1766167599268,21.08,124.2,124.11,47.62]
[1766167599965,0.06066273,124.17,124.14,0.05292635]
[1766167601370,21.14066273,124.17,124.14,0.00292635]
[1766167605069,0.06066273,124.17,124.14,0.00292635]
[1766167605375,21.14066273,124.17,124.14,0.00292635]
[1766167612179,21.08,124.14,124.04,21.06]
[1766167612380,21.08,124.13,124.04,21.06]
[1766167612878,21.08,124.13,124.06,21.06]
[1766167613076,0.05170894,124.11,124.08,0.05847851]
[1766167613378,0.00170894,124.11,124.08,21.11847851]
[1766167615472,0.00170894,124.11,124.08,28.37497851]
[1766167616882,0.00170894,124.11,124.09,28.3159]
[1766167617081,0.00170894,124.11,124.1,21.06]
[1766167617292,68.68,124.18,124.1,21.06]
[1766167618283,0.06075726,124.15,124.13,0.05251957]
[1766167621673,21.14075726,124.15,124.13,0.00251957]
[1766167622075,0.06075726,124.15,124.13,0.00251957]
[1766167623987,0.06075726,124.15,124.09,21.06]
[1766167625185,0.06075726,124.15,124.11,0.05333762]
[1766167625580,22.29075726,124.15,124.11,0.05333762]
[1766167625784,22.23,124.13,124.05,7.2581]
[1766167625988,22.23,124.13,124.05,28.3581]
[1766167626678,22.23,124.13,124.08,0.06130153]
[1766167626881,0.00190966,124.1,124.08,0.06130153]
[1766167627081,29.4828,124.15,124.08,0.06130153]
[1766167627394,22.23,124.15,124.08,28.41770153]
[1766167627591,22.23,124.15,124.09,21.1]
[1766167627983,0.05280039,124.13,124.11,0.0557999]
[1766167631393,0.05280039,124.13,124.06,21.1]
[1766167631394,25.67851151,124.13,124.06,21.1]
[1766167632189,22.23,124.12,124.04,75.9586]
[1766167632483,0.0563386,124.09,124.08,0.05726077]
[1766167632885,7.2538,124.13,124.08,0.05726077]
[1766167633281,32.87951112,124.13,124.08,0.05726077]
[1766167633482,22.23,124.11,124.04,68.7]
[1766167633686,22.23,124.11,124.04,21.1]
[1766167633687,25.62571112,124.11,124.04,21.1]
[1766167634395,22.23,124.1,124.02,68.7]
[1766167634597,0.05240579,124.07,124.05,0.05631546]
[1766167639194,0.05240579,124.07,124.02,21.1]
[1766167639401,25.67811691,124.07,124.0,21.1]
[1766167639596,22.28240579,124.07,124.0,21.1]
[1766167640300,22.28240579,124.07,124.01,28.3605]
[1766167640495,0.0519699,124.05,124.02,0.06019071]
[1766167665432,0.0519699,124.05,124.02,22.12019071]
[1766167670532,0.0019699,124.05,124.02,22.12019071]
[1766167671636,0.0019699,124.05,124.02,0.06019071]
[1766167672334,20.0219699,124.05,124.02,0.00019071]
[1766167672538,20.0219699,124.05,123.98,7.262]
[1766167672539,23.42209666,124.05,123.98,7.262]
[1766167672833,23.42209666,124.05,123.97,69.7]
[1766167673135,30.67862676,124.05,123.97,76.9629]
[1766167673328,20.02,124.04,123.97,76.9629]
[1766167673523,0.05808099,124.02,123.99,0.05825439]
[1766167675438,20.02,124.06,123.99,22.11825439]
[1766167675633,20.02,124.06,123.99,22.06]
[1766167676238,20.02,124.06,123.99,29.3217]
[1766167676438,23.48000326,124.04,124.01,0.00384909]
[1766167676647,20.02,124.04,123.96,22.06]
[1766167676842,23.42012676,124.04,123.96,22.06]
[1766167677643,0.05691874,124.01,123.99,0.05847063]
[1766167678345,10.16012676,124.0,123.92,22.06]
[1766167678540,6.76,123.99,123.92,22.06]
[1766167679034,10.16012676,123.98,123.9,3.40012676]
[1766167679344,0.05550197,123.95,123.93,0.05250527]
[1766167680247,6.75,124.0,123.93,3.45263203]
[1766167681239,0.05256749,123.98,123.93,0.05250527]
[1766167682142,0.05256749,123.98,123.94,25.46012676]
[1766167682643,47.64,124.01,123.96,3.40012676]
[1766167683543,47.64,124.01,123.97,0.05587577]
[1766167683544,0.05434822,124.0,123.97,0.05587577]
[1766167685641,54.39,124.05,123.98,25.45012676]
[1766167685837,54.39,124.05,124.0,3.40012676]
[1766167686844,0.05789451,124.04,124.01,0.05847962]
[1766167689051,13.95719451,124.04,123.97,3.40012676]
[1766167689242,6.64,124.03,123.97,3.40012676]
[1766167689549,6.64,124.03,123.96,22.05]
[1766167689951,0.05197351,124.01,123.98,0.05381742]
[1766167694850,0.05197351,124.01,123.98,0.00381742]
[1766167695051,0.05197351,124.01,123.92,22.05]
[1766167695052,6.49197351,124.01,123.92,22.05]
[1766167695256,6.49197351,124.01,123.92,27.36556072]
[1766167695257,6.44,124.01,123.92,27.36556072]
[1766167696049,0.05213365,123.98,123.95,0.06203424]
[1766167700458,6.26,124.03,123.95,20.00203424]
[1766167700656,53.92,124.05,123.98,19.94]
[1766167701563,0.05307942,124.03,124.0,0.05138412]
[1766167710561,0.00307942,124.03,124.0,19.99138412]
[1766167710759,6.05,124.08,124.0,19.99138412]
[1766167711071,6.05,124.08,124.0,19.94]
[1766167711270,6.05,124.08,124.01,19.94]
[1766167711569,53.74,124.1,124.01,19.94]
[1766167711770,0.05635105,124.07,124.04,0.05447849]
[1766167717063,13.2847,124.12,124.04,20.22447849]
[1766167717268,6.01,124.11,124.04,20.17]
[1766167718073,0.06040349,124.09,124.06,0.05159106]
[1766167718276,0.00040349,124.09,124.06,20.22159106]
[1766167719067,5.99,124.13,124.06,20.22159106]
[1766167719460,13.2823,124.16,124.06,20.22159106]
[1766167719671,13.2823,124.16,124.06,20.17]
[1766167720068,0.00469283,124.12,124.1,0.05562124]
[1766167720570,0.00469283,124.12,124.1,20.22562124]
[1766167721571,0.00469283,124.12,124.1,0.05562124]
[1766167722975,0.00469283,124.12,124.1,20.22562124]
[1766167723367,1.34985831,124.17,124.1,20.22562124]
[1766167723577,53.67,124.18,124.1,20.22562124]
[1766167723876,53.67,124.18,124.1,20.17]
[1766167724373,0.06112637,124.15,124.13,0.05536762]
[1766167726875,0.00112637,124.15,124.13,20.22536762]
[1766167730581,0.00112637,124.15,124.13,0.05536762]
[1766167730777,0.00112637,124.15,124.09,20.17]
[1766167730975,5.9,124.14,124.07,20.17]
[1766167731876,5.9,124.14,124.09,0.05595613]
[1766167731877,0.05836977,124.12,124.09,0.05595613]
[1766167733074,5.86836977,124.12,124.05,20.17]
[1766167734181,5.86836977,124.12,124.07,0.05264637]
[1766167735583,13.12286977,124.12,124.07,0.05264637]
[1766167740987,5.7,124.1,124.07,0.00264637]
[1766167741200,5.65,124.09,123.99,20.17]
[1766167741404,5.63,124.07,123.99,20.17]
[1766167742208,0.06192125,124.04,124.02,0.05251627]
[1766167743095,0.00192125,124.04,124.02,0.05251627]
[1766167743296,0.00192125,124.04,124.02,20.22251627]
[1766167745892,0.00192125,124.04,123.96,112.9872]
[1766167745893,0.00192125,124.04,123.96,20.17]
[1766167746097,10.87214494,124.05,123.96,20.17]
[1766167746699,5.56,124.04,123.96,20.17]
[1766167747100,0.05346083,124.01,123.99,0.0555295]
[1766167747602,0.00346083,124.01,123.99,0.0555295]
[1766167748805,5.53346083,124.01,123.95,20.17]
[1766167749105,5.53,124.0,123.93,20.17]
[1766167749307,5.30214494,124.01,123.93,20.17]
[1766167749501,112.9386,124.02,123.93,20.17]
[1766167749502,5.51,124.02,123.93,20.17]
[1766167749893,5.51,124.02,123.96,0.05391388]
[1766167749894,0.05652545,123.99,123.96,0.05391388]
[1766167751597,5.49,124.04,123.96,20.22391388]
[1766167751803,5.49,124.04,123.96,20.17]
[1766167752505,0.05500459,124.01,123.99,0.05662964]
[1766167754097,47.62,124.05,123.99,20.22662964]
[1766167755115,0.06081372,124.03,123.99,0.05662964]
[1766167756211,5.61081372,124.03,123.99,0.05662964]
[1766167757614,12.87061372,124.03,123.99,0.05662964]
[1766167759309,12.87061372,124.03,123.96,20.17]
[1766167759310,5.46,124.02,123.96,20.17]
[1766167759915,5.46,124.02,123.93,20.17]
[1766167760317,0.06017402,123.99,123.96,0.05335574]
[1766167760519,0.06017402,123.99,123.96,0.00335574]
[1766167764413,7.32217402,123.99,123.96,0.00335574]
[1766167766216,7.2626,123.98,123.96,0.00335574]
[1766167770124,0.06017402,123.99,123.96,0.00335574]
[1766167770326,0.00017402,123.99,123.96,21.31335574]
[1766167773320,0.00017402,123.99,123.96,0.00335574]
[1766167775711,0.00017402,123.99,123.96,19.65335574]
[1766167777617,0.00017402,123.99,123.96,26.91685574]
[1766167780127,0.00017402,123.99,123.96,0.00335574]
[1766167783730,5.22017402,123.99,123.96,0.00335574]
[1766167783928,8.6221278,123.99,123.96,0.00335574]
[1766167784432,5.22017402,123.99,123.96,0.00335574]
[1766167784628,0.00017402,123.99,123.96,0.00335574]
[1766167795333,0.00017402,123.99,123.97,19.65]
[1766167795538,0.00017402,123.99,123.98,19.65]
[1766167795833,8.53195378,124.06,123.98,19.65]
[1766167796029,5.13,124.06,123.98,19.65]
[1766167796632,0.06063446,124.03,124.01,0.05839167]
[1766167800946,7.32043446,124.03,123.97,19.65]
[1766167801142,0.00063446,124.03,123.97,19.65]
[1766167801343,0.00063446,124.03,123.99,19.65]
[1766167801550,3.40195378,124.07,123.99,19.65]
[1766167801748,119.29163581,124.09,123.99,19.65]
[1766167802042,7.2557,124.1,124.03,19.65]
[1766167802242,0.05920192,124.08,124.05,0.05395297]
[1766167803441,0.05920192,124.08,124.02,0.02]
[1766167803442,6.46920192,124.08,124.02,0.02]
[1766167803841,9.86901219,124.08,124.02,0.02]
[1766167804349,9.86901219,124.08,124.02,20.83]
[1766167804549,9.86901219,124.08,124.04,0.05514766]
[1766167807546,3.45901219,124.08,124.04,0.05514766]
[1766167807853,0.05920192,124.08,124.04,0.05514766]
[1766167809246,0.05920192,124.08,124.04,20.86514766]
[1766167809953,0.05920192,124.08,124.04,28.12394766]
[1766167812648,0.05920192,124.08,124.05,7.2582]
[1766167812854,6.3,124.11,124.05,28.0682]
[1766167813449,6.3,124.11,124.05,20.81]
[1766167813858,0.05491233,124.09,124.07,0.05627583]
[1766167815150,0.05491233,124.09,124.03,28.0693]
[1766167816153,0.05491233,124.09,124.05,0.05741623]
[1766167819960,0.00491233,124.09,124.06,20.29]
[1766167821959,0.00491233,124.09,124.05,0.05741623]
[1766167828671,0.00491233,124.09,124.05,20.34741623]
[1766167829170,0.00491233,124.09,124.06,20.29]
[1766167835174,0.00491233,124.09,124.08,20.94]
[1766167836671,24.23,124.17,124.05,0.05741623]
[1766167836672,6.21,124.19,124.11,20.94]
[1766167836873,6.21,124.19,124.09,20.94]
[1766167837270,13.47,124.17,124.09,20.94]
[1766167837670,0.05090625,124.14,124.12,0.06051228]
[1766167838275,0.00090625,124.14,124.12,0.06051228]
[1766167838975,0.00090625,124.14,124.12,28.25431228]
[1766167839278,0.00090625,124.14,124.13,20.94]
[1766167840981,13.5,124.21,124.15,20.94]
[1766167841175,47.62,124.22,124.15,20.94]
[1766167842085,13.5,124.23,124.16,28.1916]
[1766167842277,13.5,124.23,124.18,0.05979554]
[1766167842278,0.05403942,124.21,124.18,0.05979554]
[1766167846174,0.05403942,124.21,124.18,20.99979554]
[1766167846175,0.00403942,124.21,124.18,20.99979554]
[1766167846777,61.15,124.27,124.19,20.94]
[1766167847183,61.15,124.27,124.2,20.94]
[1766167847377,34.5396,124.27,124.21,133.6992]
[1766167847572,13.53,124.32,124.23,20.94]
[1766167847782,0.0603729,124.29,124.26,0.06108757]
[1766167853482,13.5803729,124.29,124.22,20.94]
[1766167854483,13.5803729,124.29,124.24,0.05280851]
[1766167856694,20.8250729,124.29,124.24,0.00280851]
[1766167857000,13.41,124.28,124.24,0.00280851]
[1766167857297,13.41,124.28,124.19,20.94]
[1766167857889,13.4,124.27,124.19,20.94]
[1766167858179,0.00063048,124.24,124.22,0.05677496]
[1766167860493,0.00063048,124.24,124.22,20.99677496]
[1766167861797,0.00063048,124.24,124.22,0.05677496]
[1766167864001,13.40063048,124.24,124.16,20.94]
[1766167864185,13.4,124.24,124.16,20.94]
[1766167864495,7.2481,124.23,124.16,20.94]
[1766167864914,0.06047275,124.21,124.18,0.06207788]
[1766167865299,13.44047275,124.21,124.13,67.23]
[1766167865498,13.38,124.21,124.14,19.67]
[1766167866199,0.05982691,124.19,124.16,0.06131549]
[1766167869306,0.05982691,124.19,124.17,4.557e-05]
[1766167869503,0.05982691,124.19,124.16,0.06131549]
[1766167870304,7.31092691,124.19,124.16,0.06131549]
[1766167871104,7.2517,124.18,124.12,19.67]
[1766167872096,0.0592233,124.16,124.14,0.05705274]
[1766167872413,13.2492233,124.16,124.09,19.67]
[1766167872703,13.19,124.16,124.09,19.67]
[1766167873103,13.19,124.14,124.06,19.67]
[1766167873499,0.05203308,124.11,124.09,0.05404635]
[1766167874607,0.00203308,124.11,124.09,0.05404635]
[1766167875702,0.00203308,124.11,124.09,19.72404635]
[1766167877003,0.00203308,124.11,124.09,0.05404635]
[1766167881310,0.00203308,124.11,124.1,7.69034244]
[1766167883013,0.00203308,124.11,124.1,26.88034244]
[1766167888714,0.00203308,124.11,124.1,28.50034244]
[1766167889509,47.58,124.17,124.11,19.19]
[1766167889711,20.4714,124.19,124.12,7.69034244]
[1766167890016,13.22,124.19,124.13,7.69034244]
[1766167890220,7.2522,124.17,124.11,19.19]
[1766167890411,0.05877993,124.15,124.13,0.06162238]
[1766167892111,7.2506,124.2,124.13,0.06162238]
[1766167892310,112.7468,124.25,124.13,0.06162238]
[1766167892311,13.27,124.21,124.13,19.25162238]
[1766167892516,13.27,124.21,124.14,19.19]
[1766167892704,47.6,124.22,124.14,19.19]
[1766167892908,13.27,124.2,124.11,19.19]
[1766167893314,0.05890283,124.17,124.14,0.05104234]
[1766167893711,16.67298259,124.17,124.14,0.00104234]
[1766167893910,23.92528259,124.17,124.09,66.79]
[1766167894110,23.86637976,124.17,124.09,66.79]
[1766167894812,3.39407976,124.13,124.06,19.9]
[1766167895023,13.2,124.14,124.0,19.9]
[1766167895024,3.39407976,124.08,124.0,19.9]
[1766167895318,3.39407976,124.08,124.01,19.9]
[1766167895812,13.14,124.11,124.01,19.9]
[1766167896012,0.05516373,124.07,124.05,0.05987616]
[1766167903814,0.05516373,124.07,124.0,47.6]
[1766167904012,13.12516373,124.07,124.0,19.9]
[1766167904215,13.07,124.06,124.0,19.9]
[1766167904821,0.05473871,124.04,124.02,0.05836868]
[1766167906621,0.00473871,124.04,124.02,0.05836868]
[1766167921331,13.05,124.02,123.91,19.9]
[1766167921536,13.05,123.97,123.91,19.9]
[1766167921740,3.40075052,123.97,123.91,19.9]
[1766167921951,51.04075052,123.99,123.91,19.9]
[1766167922536,0.00101814,123.96,123.94,0.05640564]
[1766167922833,0.00101814,123.96,123.94,19.95640564]
[1766167929563,0.00101814,123.96,123.94,0.05640564]
[1766167930739,132.8604,124.07,123.94,21.02640564]
[1766167930939,3.40075052,124.04,123.95,20.97]
[1766167931143,116.33415052,124.04,123.95,20.97]
[1766167931544,137.35415052,124.04,123.95,20.97]
[1766167931746,0.06084568,124.01,123.98,0.0593498]
[1766167934249,0.06084568,124.01,123.94,7.2653]
[1766167934250,21.08084568,124.01,123.94,20.97]
[1766167935456,21.08084568,124.01,123.96,0.05716389]
[1766167936350,0.06084568,124.01,123.96,21.02716389]
[1766167938957,27.7487,124.06,123.96,21.02716389]
[1766167939252,27.7487,124.06,123.96,20.97]
[1766167939253,20.49,124.06,123.96,20.97]
[1766167939755,20.49,124.03,123.96,20.97]
[1766167939971,0.05592262,124.01,123.98,0.05553815]
[1766167942945,20.54592262,124.01,123.94,20.71]
[1766167943152,20.49,124.01,123.94,20.71]
[1766167943953,0.05113418,123.99,123.96,0.05188678]
[1766167945746,7.31383418,123.99,123.96,0.05188678]
[1766167946764,7.2633,123.98,123.92,20.71]
[1766167947055,20.49,123.99,123.92,20.71]
[1766167947255,20.49,123.99,123.93,7.64360521]
[1766167947561,20.49,123.98,123.94,5.21e-06]
[1766167947756,0.05430865,123.97,123.92,20.71]
[1766167948458,20.49,123.95,123.89,20.71]
[1766167948864,0.0515454,123.93,123.89,20.71]
[1766167949859,0.0015454,123.93,123.89,20.71]
[1766167950859,0.0015454,123.93,123.9,0.05724774]
[1766167952661,7.2677454,123.93,123.89,6.6929123]
[1766167953463,20.49,123.92,123.84,1.40455674]
[1766167953764,20.49,123.92,123.8,96.7]
[1766167953765,0.06165282,123.89,123.8,160.8017]
[1766167953960,181.1852,123.93,123.8,160.8017]
[1766167953961,47.66,123.93,123.82,113.1251]
[1766167954163,7.2657,123.94,123.85,7.2706]
[1766167954665,7.2657,123.94,123.86,20.12]
[1766167954975,75.5944,123.96,123.86,27.39]
[1766167955160,0.00127101,123.91,123.89,0.0536832]
[1766167955362,47.66,123.96,123.89,20.1736832]
[1766167955564,54.9245,123.96,123.89,20.1736832]
[1766167955956,47.66,123.96,123.89,20.1736832]
[1766167956158,0.05982063,123.94,123.89,20.1736832]
[1766167956567,47.66,123.96,123.89,20.1736832]
[1766167957168,7.264,123.97,123.89,20.1736832]
[1766167957466,181.3231,124.0,123.9,20.12]
[1766167957665,0.05493032,123.96,123.94,0.05510081]
[1766167960770,54.9423,124.0,123.94,20.17510081]
[1766167961857,0.06030185,123.98,123.94,20.17510081]
[1766167964167,0.00030185,123.98,123.94,20.17510081]
[1766167965063,0.00030185,123.98,123.94,27.44030081]
[1766167965262,0.00030185,123.98,123.95,20.12]
[1766167966168,20.67,124.04,123.96,20.12]
[1766167966770,20.67,124.04,123.92,113.0358]
[1766167966771,20.67,124.04,123.97,20.12]
[1766167967260,0.05514283,124.02,123.99,0.05373648]
[1766167968574,7.31614283,124.02,123.99,0.05373648]
[1766167973474,0.05514283,124.02,123.99,0.05373648]
[1766167973678,181.234,124.07,123.99,20.17373648]
[1766167973976,20.67,124.06,123.99,20.12]
[1766167974370,7.2592,124.05,123.99,20.12]
[1766167974565,0.05199997,124.03,124.01,0.05251768]
[1766167974973,27.9311,124.02,123.94,20.12]
[1766167975972,0.05908832,123.99,123.97,0.05418206]
[1766167980480,0.05908832,123.99,123.89,20.12]
[1766167980684,25.98741219,124.0,123.91,20.12]
[1766167981187,25.98741219,124.0,123.92,20.12]
[1766167981188,27.9325,124.0,123.92,20.12]
[1766167981480,25.98741219,124.02,123.92,20.12]
[1766167981685,27.9313,124.02,123.95,20.17611873]
[1766167981984,7.2613,124.02,123.95,20.17611873]
[1766167982172,47.66,124.03,123.95,20.17611873]
[1766167982374,27.93,124.04,123.95,20.12]
[1766167982579,27.93,124.04,123.97,20.12]
[1766167982779,0.00098257,124.01,123.98,20.18116265]
[1766167983277,7.259,124.06,123.98,20.18116265]
[1766167983584,7.259,124.06,123.98,20.12]
[1766167984478,0.05328482,124.03,124.01,0.06058379]
[1766167984674,0.00328482,124.03,124.01,0.06058379]
[1766167986282,0.00328482,124.03,124.01,0.00058379]
[1766167986485,0.00328482,124.03,123.96,19.67]
[1766167987487,0.00328482,124.03,123.98,0.05163934]
[1766167987786,0.00328482,124.03,123.98,19.72163934]
[1766167991397,0.00328482,124.03,123.98,26.98473934]
[1766167992094,0.00328482,124.03,123.99,19.67]
[1766167993494,0.00328482,124.03,123.98,0.05163934]
[1766167996899,7.26368482,124.03,123.98,0.05163934]
[1766167997091,28.01368482,124.03,123.98,0.05163934]
[1766167997297,20.75328482,124.03,123.98,0.05163934]
[1766167998696,7.2609,124.02,123.98,0.05163934]
[1766167999206,28.01398482,124.03,123.98,0.05163934]
[1766168002613,20.57,124.02,123.98,0.00163934]
[1766168003213,7.2615,124.01,123.98,0.00163934]
[1766168003413,10.66500456,124.01,123.98,0.00163934]
[1766168007016,7.2615,124.01,123.98,0.00163934]
[1766168009320,20.57,124.02,123.98,0.00163934]
[1766168014021,0.00328482,124.03,123.98,0.00163934]
[1766168014321,0.00328482,124.03,123.98,19.68163934]
[1766168014912,0.00328482,124.03,123.98,26.94473934]
[1766168015114,0.00328482,124.03,123.98,19.68163934]
[1766168016608,0.00328482,124.03,123.98,26.94463934]
[1766168017425,0.00328482,124.03,123.99,26.9423]
[1766168017721,0.00328482,124.03,123.99,19.68]
[1766168018322,24.32350456,124.08,123.98,19.68163934]
[1766168018617,24.32350456,124.08,123.99,67.32]
[1766168018918,24.32350456,124.06,123.99,67.32]
[1766168019119,24.32350456,124.04,123.98,7.2627]
[1766168019326,0.05304201,124.02,124.0,0.0020449]
[1766168019625,3.45654657,124.02,123.96,26.9438]
[1766168020017,3.45654657,124.02,123.96,19.68]
[1766168020219,24.37654657,124.02,123.96,19.68]
[1766168020415,24.37654657,124.02,123.95,54.9046]
[1766168020618,24.37654657,124.02,123.97,0.05975626]
[1766168020820,3.40351582,124.01,123.97,0.05975626]
[1766168022818,24.32351582,124.01,123.97,0.05975626]
[1766168032246,20.92,124.01,123.97,0.05975626]
[1766168034051,20.92,123.99,123.92,19.68]
[1766168034236,20.92,123.97,123.91,47.66]
[1766168034753,20.92,123.97,123.91,67.34]
[1766168034943,0.05302188,123.95,123.93,0.05625051]
[1766168035147,24.32351582,123.99,123.93,0.05625051]
[1766168036046,0.05150484,123.97,123.93,0.05625051]
[1766168036642,0.05150484,123.97,123.93,7.32235051]
[1766168036844,20.97150484,123.97,123.89,113.0631]
[1766168037044,24.32351582,123.97,123.87,19.68]
[1766168037246,24.32351582,123.95,123.88,19.68]
[1766168038047,0.05172169,123.93,123.9,0.05169148]
[1766168040350,24.37523751,123.93,123.85,7.2704]
[1766168040546,24.32351582,123.93,123.85,7.2704]
[1766168041460,0.05684467,123.9,123.88,0.0561973]
[1766168045757,51.06351582,123.94,123.88,20.3461973]
[1766168045956,47.66,123.94,123.88,20.3461973]
[1766168046259,20.02,123.97,123.89,20.29]
[1766168046465,20.02,123.97,123.9,20.29]
[1766168046665,0.06076109,123.95,123.92,0.05342124]
[1766168047063,20.02,123.99,123.92,20.34342124]
[1766168047265,20.02,123.99,123.92,20.29]
[1766168047765,20.02,123.99,123.92,23.69351582]
[1766168048353,20.02,123.99,123.91,7.2671]
[1766168048354,0.00121193,123.97,123.94,23.75558039]
[1766168048568,7.2613,124.02,123.94,23.69351582]
[1766168048771,20.02,124.03,123.95,20.29]
[1766168049260,160.6065,124.05,123.96,23.69351582]